bitfinex-derivatives/quotes_SOLF0:USTF0_20241024
["timestamp","ask_amount","ask_price","bid_price","bid_amount"]
[1729784414825,6.6346,176.44,176.33,4.98]
[1729784415131,13.61558926,176.41,176.33,4.98]
[1729784415620,2.8369,176.4,176.34,2.8377]
[1729784416122,13.61558926,176.41,176.33,4.98]
[1729784416308,2.837,176.39,176.34,2.8378]
[1729784416914,16.45228926,176.41,176.36,2.8374]
[1729784417419,13.61558926,176.41,176.31,18.59558926]
[1729784418928,16.45228926,176.41,176.31,18.59558926]
[1729784419223,13.61558926,176.41,176.31,18.59558926]
[1729784419421,13.61558926,176.41,176.37,2.8372]
[1729784420117,13.61558926,176.43,176.33,13.61558926]
[1729784420322,2.8365,176.42,176.37,2.8372]
[1729784420517,13.61558926,176.43,176.37,2.8372]
[1729784421216,2.8367,176.41,176.37,2.8372]
[1729784421617,13.61558926,176.43,176.33,13.61558926]
[1729784421820,1.6546,176.44,176.35,13.61558926]
[1729784422024,1.6546,176.44,176.36,4.98]
[1729784422327,4.4908,176.44,176.39,2.8369]
[1729784422524,1.6159,176.46,176.37,13.61558926]
[1729784422722,1.6159,176.46,176.39,13.61558926]
[1729784423024,4.4518,176.46,176.39,13.61558926]
[1729784424121,4.4518,176.46,176.41,2.8366]
[1729784424322,2.8362,176.44,176.37,13.61558926]
[1729784424626,2.8362,176.44,176.4,2.8368]
[1729784425024,2.8364,176.43,176.37,13.61558926]
[1729784425330,2.8364,176.43,176.39,2.8369]
[1729784425629,1.6159,176.46,176.37,13.61558926]
[1729784425834,16.47607081,176.54,176.42,13.61558926]
[1729784426024,3.2361,176.53,176.43,4.98]
[1729784426325,2.8349,176.52,176.48,2.8355]
[1729784427230,2.8351,176.51,176.47,2.8357]
[1729784427424,3.2361,176.53,176.45,13.61558926]
[1729784427817,2.8351,176.51,176.47,2.8356]
[1729784428629,3.2361,176.53,176.45,13.61558926]
[1729784428825,1.5673,176.53,176.48,13.61558926]
[1729784429025,1.5673,176.53,176.46,13.61558926]
[1729784429735,2.8349,176.52,176.46,13.61558926]
[1729784430323,1.5673,176.53,176.46,13.61558926]
[1729784430324,3.1123,176.53,176.46,2.8358]
[1729784430629,13.61558926,176.51,176.42,4.98]
[1729784430828,2.8356,176.48,176.44,2.8362]
[1729784431538,18.59558926,176.51,176.42,2.8364]
[1729784431539,2.836,176.46,176.42,2.8364]
[1729784432228,2.836,176.46,176.42,2.8365]
[1729784433533,2.8363,176.44,176.4,7.8168]
[1729784433735,2.8363,176.44,176.4,4.98]
[1729784435335,2.8363,176.44,176.41,2.8366]
[1729784436132,13.61558926,176.47,176.4,4.98]
[1729784436331,2.8365,176.43,176.4,4.98]
[1729784436638,13.61558926,176.47,176.4,4.98]
[1729784436838,2.8362,176.44,176.4,7.8167]
[1729784438135,2.8362,176.44,176.41,2.8367]
[1729784438341,2.8368,176.41,176.31,1.6279]
[1729784438633,13.61558926,176.43,176.37,2.8372]
[1729784438634,15.16848926,176.43,176.37,2.8372]
[1729784438932,2.8367,176.41,176.37,2.8372]
[1729784439835,15.16848926,176.43,176.32,13.61558926]
[1729784440031,2.8371,176.39,176.36,2.8375]
[1729784440831,15.16848926,176.43,176.37,2.8373]
[1729784440832,2.8368,176.4,176.37,2.8373]
[1729784441134,1.7011,176.45,176.36,13.61558926]
[1729784441537,1.5817,176.46,176.38,13.61558926]
[1729784441736,4.98,176.49,176.38,18.59558926]
[1729784442129,2.8359,176.45,176.38,18.59558926]
[1729784442335,13.61558926,176.47,176.38,4.98]
[1729784443235,13.61558926,176.47,176.4,2.8364]
[1729784444034,2.836,176.44,176.38,4.98]
[1729784444240,2.836,176.44,176.41,2.8363]
[1729784445238,4.98,176.49,176.39,13.61558926]
[1729784446230,2.8359,176.45,176.42,2.8361]
[1729784446434,4.98,176.49,176.42,2.8361]
[1729784446937,2.8358,176.45,176.42,2.8361]
[1729784449141,4.98,176.49,176.41,13.61558926]
[1729784449346,2.8355,176.47,176.44,2.8359]
[1729784449541,4.98,176.49,176.44,2.8359]
[1729784450039,2.8356,176.46,176.43,2.836]
[1729784454244,2.8358,176.45,176.43,2.836]
[1729784455041,2.8356,176.46,176.44,2.8359]
[1729784455241,2.8356,176.46,176.39,13.61558926]
[1729784455444,15.28038926,176.5,176.39,13.61558926]
[1729784455747,2.8357,176.46,176.43,2.836]
[1729784456341,2.8357,176.46,176.39,13.61558926]
[1729784456546,2.8357,176.46,176.44,2.8359]
[1729784458850,15.28038926,176.5,176.39,13.61558926]
[1729784459059,2.836,176.44,176.41,2.8363]
[1729784459553,13.61558926,176.47,176.41,2.8363]
[1729784459847,13.61558926,176.45,176.34,13.61558926]
[1729784460055,13.61558926,176.45,176.21,7.72069382]
[1729784460056,13.61558926,176.42,176.35,4.98]
[1729784460349,2.8366,176.4,176.35,4.98]
[1729784460946,1.7048,176.44,176.36,13.61558926]
[1729784461146,1.7034,176.49,176.38,13.61558926]
[1729784461355,15.28038926,176.5,176.4,13.61558926]
[1729784461552,2.8357,176.46,176.43,2.836]
[1729784461756,2.8357,176.46,176.41,4.98]
[1729784461950,15.28038926,176.5,176.41,4.98]
[1729784462550,15.28038926,176.5,176.47,2.8353]
[1729784462551,2.8351,176.5,176.47,2.8353]
[1729784463255,16.94148926,176.52,176.42,13.61558926]
[1729784463555,2.8349,176.51,176.47,2.8353]
[1729784463944,3.3259,176.52,176.43,4.98]
[1729784464145,13.61558926,176.55,176.44,13.61558926]
[1729784464450,18.59558926,176.57,176.46,13.61558926]
[1729784464850,18.59558926,176.57,176.49,2.835]
[1729784465052,18.59558926,176.57,176.46,13.61558926]
[1729784465248,13.61558926,176.57,176.46,13.61558926]
[1729784465444,1.6891,176.58,176.49,13.61558926]
[1729784465645,1.6891,176.58,176.5,4.98]
[1729784466257,1.6891,176.58,176.51,13.61558926]
[1729784466454,1.6891,176.58,176.54,2.8341]
[1729784466455,4.5229,176.58,176.54,2.8341]
[1729784466653,1.6891,176.58,176.51,13.61558926]
[1729784466854,1.6806,176.59,176.51,13.61558926]
[1729784467051,2.8337,176.58,176.54,2.8342]
[1729784467255,2.8337,176.58,176.51,13.61558926]
[1729784468453,2.8337,176.58,176.54,2.8341]
[1729784468653,2.8337,176.58,176.45,1.6647]
[1729784468654,13.61558926,176.57,176.46,13.61558926]
[1729784468866,13.61558926,176.57,176.47,4.96]
[1729784469159,1.6426,176.56,176.47,4.96]
[1729784470355,2.8346,176.53,176.47,4.96]
[1729784470959,1.6426,176.56,176.47,4.96]
[1729784471157,2.8344,176.54,176.5,2.8348]
[1729784471958,2.8347,176.52,176.47,4.96]
[1729784472758,2.8349,176.51,176.47,4.96]
[1729784473061,16.85228926,176.55,176.47,4.96]
[1729784473265,3.2367,176.55,176.47,4.96]
[1729784473568,1.63,176.55,176.47,4.96]
[1729784473859,2.8344,176.54,176.51,2.8347]
[1729784474058,13.61558926,176.62,176.51,13.61558926]
[1729784474264,20.20208926,176.62,176.52,4.96]
[1729784474454,20.20208926,176.62,176.55,2.8341]
[1729784475255,2.8337,176.58,176.55,2.8341]
[1729784475469,1.6265,176.62,176.55,2.834]
[1729784475662,1.6265,176.62,176.53,13.61558926]
[1729784476163,15.24208926,176.62,176.52,4.96]
[1729784476364,1.5708,176.63,176.57,13.61558926]
[1729784476565,1.5708,176.63,176.57,18.57558926]
[1729784477266,1.5708,176.63,176.57,4.96]
[1729784477567,1.5708,176.63,176.54,4.96]
[1729784478068,2.8336,176.59,176.56,2.834]
[1729784478269,13.61558926,176.62,176.54,4.96]
[1729784478569,2.8334,176.6,176.54,7.7942]
[1729784478863,13.61558926,176.62,176.54,4.96]
[1729784479068,1.5708,176.63,176.54,18.57558926]
[1729784479263,2.8331,176.62,176.59,2.8334]
[1729784479763,1.5708,176.63,176.56,13.61558926]
[1729784479962,2.8332,176.61,176.57,2.8337]
[1729784480167,2.8332,176.61,176.54,18.57558926]
[1729784480467,2.8332,176.61,176.54,4.96]
[1729784480667,4.4038,176.63,176.56,2.8339]
[1729784480967,1.5708,176.63,176.54,4.96]
[1729784481670,2.8332,176.61,176.58,2.8336]
[1729784482561,3.2874,176.67,176.56,21.766382]
[1729784482768,3.2874,176.67,176.54,4.96]
[1729784482965,3.2874,176.67,176.55,4.96]
[1729784483168,2.8333,176.61,176.58,2.8336]
[1729784483764,2.8333,176.6,176.58,2.8336]
[1729784483958,2.8333,176.6,176.55,4.96]
[1729784483959,21.766382,176.66,176.56,2.834]
[1729784484357,2.8328,176.63,176.56,2.834]
[1729784484564,4.96,176.64,176.56,2.834]
[1729784484762,1.5449,176.63,176.53,1.6693]
[1729784484969,2.8338,176.58,176.55,2.834]
[1729784488080,23.311282,176.63,176.55,2.834]
[1729784488273,2.8338,176.57,176.55,2.834]
[1729784488475,23.311282,176.63,176.52,4.96]
[1729784488676,2.8339,176.57,176.54,2.8342]
[1729784492784,23.311282,176.63,176.52,4.96]
[1729784493083,1.5449,176.63,176.53,21.766382]
[1729784493376,1.5449,176.63,176.58,2.8336]
[1729784493576,2.8333,176.61,176.58,2.8336]
[1729784493777,1.5449,176.63,176.53,23.422482]
[1729784494286,2.8329,176.61,176.53,23.422482]
[1729784494483,2.8329,176.61,176.58,2.8333]
[1729784494683,2.8329,176.61,176.53,23.422482]
[1729784494684,2.8327,176.63,176.55,21.766382]
[1729784494874,2.8327,176.63,176.57,4.96]
[1729784495071,3.2874,176.67,176.57,4.96]
[1729784495276,2.8328,176.62,176.59,2.8331]
[1729784495477,3.2874,176.67,176.57,4.96]
[1729784495788,2.8329,176.62,176.58,2.8332]
[1729784495981,2.8329,176.62,176.57,4.96]
[1729784496372,2.8329,176.62,176.59,2.8332]
[1729784498780,3.2874,176.67,176.59,2.8332]
[1729784498781,2.8329,176.61,176.59,2.8332]
[1729784503391,13.60453623,176.66,176.59,2.8332]
[1729784503588,2.8327,176.62,176.59,2.8332]
[1729784505985,2.8331,176.6,176.57,7.7934]
[1729784506185,2.8331,176.6,176.57,4.96]
[1729784506587,2.8333,176.59,176.57,4.96]
[1729784506789,2.8333,176.59,176.54,4.94]
[1729784507687,2.8331,176.6,176.57,2.8334]
[1729784509698,2.8331,176.6,176.54,4.94]
[1729784509699,103.60453623,176.59,176.4,7.72069382]
[1729784509991,13.60453623,176.56,176.47,13.60453623]
[1729784510193,105.24663623,176.59,176.49,13.60453623]
[1729784510384,2.8338,176.56,176.52,2.8342]
[1729784510694,1.6421,176.59,176.49,13.60453623]
[1729784510896,2.8336,176.57,176.53,2.8341]
[1729784512088,2.8336,176.57,176.51,13.60453623]
[1729784512691,2.8336,176.57,176.53,2.8341]
[1729784514897,2.8338,176.56,176.52,2.8343]
[1729784515193,1.6421,176.59,176.49,13.60453623]
[1729784515394,2.8338,176.56,176.52,2.8342]
[1729784516996,2.8338,176.56,176.53,2.8341]
[1729784517894,1.6421,176.59,176.49,13.60453623]
[1729784518200,2.8337,176.56,176.49,13.60453623]
[1729784518599,4.94,176.62,176.53,13.60453623]
[1729784518898,3.2368,176.63,176.53,13.60453623]
[1729784518899,8.1768,176.63,176.53,13.60453623]
[1729784519093,8.1768,176.63,176.56,2.8336]
[1729784519291,2.8333,176.59,176.56,2.8336]
[1729784520100,2.8334,176.58,176.56,2.8336]
[1729784520898,2.8332,176.59,176.56,2.8336]
[1729784521395,3.2368,176.63,176.52,4.94]
[1729784521702,1.6111,176.63,176.57,13.60453623]
[1729784523197,1.6111,176.63,176.54,13.60453623]
[1729784523400,1.6111,176.63,176.52,4.94]
[1729784523401,13.60453623,176.62,176.52,4.94]
[1729784523596,1.6111,176.63,176.56,13.60453623]
[1729784523800,2.8327,176.62,176.59,2.8331]
[1729784524001,4.94,176.66,176.56,13.60453623]
[1729784524200,2.8326,176.63,176.6,2.8329]
[1729784525304,2.8326,176.63,176.61,2.8329]
[1729784525497,2.8326,176.63,176.58,13.60453623]
[1729784525898,2.8326,176.63,176.6,2.8329]
[1729784526101,2.833,176.61,176.57,4.94]
[1729784526503,15.18833623,176.67,176.57,4.94]
[1729784526904,2.8328,176.62,176.59,2.8331]
[1729784527294,15.18833623,176.67,176.57,4.94]
[1729784527496,1.5838,176.67,176.58,13.60453623]
[1729784528110,2.8325,176.64,176.58,13.60453623]
[1729784528408,1.5838,176.67,176.58,13.60453623]
[1729784528606,2.8324,176.64,176.57,7.7734]
[1729784528811,15.18833623,176.67,176.57,7.7734]
[1729784529314,2.8331,176.6,176.57,7.7734]
[1729784529605,13.60453623,176.65,176.57,4.94]
[1729784529810,13.60453623,176.65,176.56,2.8336]
[1729784530410,2.8333,176.59,176.56,2.8336]
[1729784532407,2.8338,176.56,176.53,2.8341]
[1729784533507,2.8338,176.56,176.51,13.60453623]
[1729784533508,2.834,176.55,176.52,2.8343]
[1729784534015,2.834,176.55,176.51,4.94]
[1729784534310,2.8336,176.57,176.54,2.8339]
[1729784534715,2.8334,176.58,176.55,2.8337]
[1729784535100,1.546,176.59,176.55,2.8337]
[1729784535507,1.546,176.59,176.51,18.54453623]
[1729784535810,1.546,176.59,176.54,2.8339]
[1729784536009,2.8336,176.57,176.54,2.8339]
[1729784536209,2.8336,176.57,176.55,2.8338]
[1729784536402,2.8336,176.57,176.51,18.54453623]
[1729784536602,1.6243,176.61,176.51,18.54453623]
[1729784536809,2.8332,176.59,176.56,2.8336]
[1729784537212,1.6243,176.61,176.51,18.54453623]
[1729784537416,2.8333,176.59,176.56,2.8336]
[1729784538010,1.6243,176.61,176.51,18.54453623]
[1729784539014,1.6243,176.61,176.56,2.8336]
[1729784539015,2.8332,176.59,176.56,2.8336]
[1729784539722,1.6243,176.61,176.51,18.54453623]
[1729784540410,2.8335,176.58,176.56,2.8337]
[1729784541021,2.8333,176.59,176.56,2.8337]
[1729784543226,4.5167,176.62,176.55,2.8338]
[1729784543520,1.6838,176.62,176.53,13.60453623]
[1729784544021,1.546,176.65,176.55,13.60453623]
[1729784544211,1.5879,176.68,176.6,13.60453623]
[1729784544523,2.8321,176.66,176.64,2.8323]
[1729784544727,2.8321,176.66,176.62,13.60453623]
[1729784545019,2.8321,176.66,176.63,2.8324]
[1729784549126,13.60453623,176.75,176.64,13.60453623]
[1729784549320,8.1674,176.76,176.67,13.60453623]
[1729784549517,8.1674,176.76,176.68,2.8317]
[1729784549518,2.8309,176.74,176.68,2.8317]
[1729784549724,2.8309,176.74,176.67,18.54453623]
[1729784549725,2.84024538,176.74,176.67,4.94]
[1729784549930,13.60453623,176.75,176.67,4.94]
[1729784550316,2.8246661,176.74,176.67,4.94]
[1729784550629,13.60453623,176.75,176.67,4.94]
[1729784551641,2.84514297,176.74,176.67,4.94]
[1729784551932,13.60453623,176.75,176.67,4.94]
[1729784552319,2.8315,176.7,176.67,7.7719]
[1729784552925,3.2274,176.76,176.67,4.94]
[1729784553121,1.6395,176.76,176.69,13.60453623]
[1729784553318,1.5812,176.8,176.71,13.60453623]
[1729784553526,2.8306,176.76,176.72,7.771]
[1729784553737,13.60453623,176.77,176.72,4.94]
[1729784553920,13.60453623,176.77,176.66,13.60453623]
[1729784554119,13.60453623,176.77,176.68,4.94]
[1729784554429,13.60453623,176.77,176.67,4.94]
[1729784554643,13.60453623,176.74,176.63,13.60453623]
[1729784554923,1.6709,176.73,176.66,18.54453623]
[1729784555118,1.6709,176.73,176.67,4.94]
[1729784555321,4.94,176.76,176.67,4.94]
[1729784555627,13.60453623,176.78,176.67,4.94]
[1729784555830,6.5925,176.79,176.67,4.94]
[1729784555831,13.60453623,176.76,176.67,4.94]
[1729784556217,6.5925,176.79,176.67,4.94]
[1729784556218,2.8316,176.69,176.67,4.94]
[1729784556529,13.60453623,176.74,176.67,4.94]
[1729784556731,1.6519,176.73,176.67,4.94]
[1729784557530,2.8315,176.7,176.67,4.94]
[1729784558319,13.60453623,176.71,176.65,4.92]
[1729784558524,2.8319,176.68,176.65,4.92]
[1729784558726,1.5867,176.72,176.65,4.92]
[1729784558927,1.6519,176.73,176.65,18.52453623]
[1729784559224,13.60453623,176.76,176.65,18.52453623]
[1729784559627,2.8309,176.74,176.7,2.8314]
[1729784560025,13.60453623,176.76,176.7,2.8314]
[1729784560227,2.831,176.73,176.69,2.8316]
[1729784560924,13.60453623,176.76,176.65,18.52453623]
[1729784561134,13.60453623,176.76,176.71,2.8313]
[1729784561322,13.60453623,176.76,176.67,13.60453623]
[1729784561717,1.5867,176.77,176.69,13.60453623]
[1729784561923,1.5867,176.77,176.7,4.92]
[1729784562225,18.52453623,176.81,176.73,2.8309]
[1729784562930,2.8304,176.77,176.73,2.8309]
[1729784563132,4.7932,176.82,176.7,4.92]
[1729784563324,18.39773623,176.82,176.71,13.60453623]
[1729784563728,7.6228,176.82,176.78,2.8302]
[1729784564222,1.5799,176.82,176.78,2.8302]
[1729784564417,2.8298,176.81,176.78,2.8302]
[1729784565132,4.4094,176.82,176.78,2.8302]
[1729784565329,1.5799,176.82,176.75,4.92]
[1729784565829,2.83,176.79,176.75,7.7505]
[1729784566029,15.18443623,176.82,176.75,4.92]
[1729784566532,2.8298,176.81,176.77,2.8302]
[1729784567035,13.60453623,176.84,176.75,4.92]
[1729784567428,13.60453623,176.84,176.78,2.83]
[1729784567731,1.68,176.88,176.78,13.60453623]
[1729784567937,1.68,176.88,176.82,2.8294]
[1729784568135,2.8289,176.86,176.82,2.8294]
[1729784568537,2.8289,176.86,176.83,2.8293]
[1729784568744,2.7842513,176.87,176.8,4.92]
[1729784569039,2.8291,176.85,176.81,2.8296]
[1729784569337,2.8291,176.85,176.8,4.92]
[1729784570036,1.68,176.88,176.76,13.60453623]
[1729784570239,2.8295,176.83,176.76,13.60453623]
[1729784570533,13.60453623,176.87,176.77,4.92]
[1729784570735,2.8292,176.84,176.78,2.83]
[1729784570933,13.60453623,176.87,176.78,2.83]
[1729784571139,13.60453623,176.87,176.77,4.92]
[1729784571534,2.8295,176.83,176.79,2.83]
[1729784572336,2.8296,176.82,176.78,2.8301]
[1729784572941,2.8293,176.84,176.78,2.8301]
[1729784573141,13.60453623,176.86,176.78,2.8301]
[1729784573343,13.60453623,176.86,176.77,7.7503]
[1729784573533,2.8297,176.81,176.77,7.7503]
[1729784574033,2.8298,176.8,176.77,7.7503]
[1729784574234,13.60453623,176.84,176.76,7.7504]
[1729784574436,13.60453623,176.84,176.76,2.8304]
[1729784575237,2.83,176.8,176.76,2.8304]
[1729784575544,2.83,176.8,176.77,2.8303]
[1729784576043,2.8296,176.82,176.78,2.83]
[1729784577146,2.8297,176.81,176.75,4.92]
[1729784577336,2.8297,176.81,176.77,2.8303]
[1729784577535,13.60453623,176.84,176.74,13.60453623]
[1729784577736,13.60453623,176.84,176.75,7.7505]
[1729784578446,13.60453623,176.84,176.76,2.8305]
[1729784578649,13.60453623,176.84,176.75,4.92]
[1729784578848,2.8301,176.79,176.75,7.7506]
[1729784579235,13.60453623,176.84,176.75,7.7506]
[1729784579543,2.8302,176.78,176.75,7.7506]
[1729784579742,13.60453623,176.82,176.75,4.92]
[1729784579943,1.5892,176.81,176.75,4.92]
[1729784580641,2.8304,176.77,176.75,4.92]
[1729784580846,13.60453623,176.8,176.72,4.92]
[1729784581038,2.8303,176.78,176.74,2.8308]
[1729784581238,1.5892,176.81,176.74,13.60453623]
[1729784581744,3.2842,176.82,176.76,2.8304]
[1729784581745,2.83,176.8,176.76,2.8304]
[1729784582447,2.8297,176.81,176.78,2.8302]
[1729784582647,1.6662,176.82,176.74,13.60453623]
[1729784583743,4.9016,176.87,176.76,13.60453623]
[1729784583945,4.9016,176.87,176.78,13.60453623]
[1729784584244,3.1987,176.87,176.78,13.60453623]
[1729784584447,1.5892,176.87,176.81,13.60453623]
[1729784584646,1.5892,176.87,176.82,4.92]
[1729784585137,4.418,176.87,176.83,2.8293]
[1729784585536,2.8289,176.86,176.83,2.8293]
[1729784586345,4.4375,176.92,176.88,2.8285]
[1729784586647,2.828,176.92,176.88,2.8285]
[1729784587143,1.5988,176.97,176.87,18.52453623]
[1729784587144,15.20333623,176.97,176.87,18.52453623]
[1729784587345,15.20333623,176.97,176.88,4.92]
[1729784587744,2.8278,176.93,176.89,2.8284]
[1729784588145,15.20333623,176.97,176.88,4.92]
[1729784588346,1.5988,176.97,176.88,4.92]
[1729784588537,13.60453623,176.95,176.87,4.92]
[1729784588945,2.8282,176.91,176.87,4.92]
[1729784589245,18.52453623,176.92,176.81,13.60453623]
[1729784589442,2.8287,176.88,176.81,13.60453623]
[1729784590049,2.8282,176.91,176.85,13.60453623]
[1729784590244,4.92,176.95,176.85,13.60453623]
[1729784590753,13.60453623,176.94,176.84,4.92]
[1729784591844,2.8285,176.89,176.85,2.829]
[1729784596350,2.8286,176.88,176.85,2.829]
[1729784598849,4.92,176.96,176.85,13.60453623]
[1729784599055,15.20333623,176.97,176.87,13.60453623]
[1729784599451,2.828,176.92,176.88,2.8285]
[1729784599652,15.20333623,176.97,176.87,13.60453623]
[1729784600053,2.8274,176.96,176.92,2.8279]
[1729784600359,13.60453623,176.99,176.91,4.92]
[1729784600657,2.8277,176.94,176.91,4.92]
[1729784600854,13.60453623,176.99,176.91,4.92]
[1729784601452,4.92,177.01,176.93,2.8277]
[1729784601650,13.60453623,177.0,176.91,4.92]
[1729784601956,4.8607,177.03,176.91,18.52453623]
[1729784602258,1.6948,177.03,176.94,13.60453623]
[1729784602451,13.60453623,177.06,176.96,13.60453623]
[1729784602758,13.60453623,177.04,176.97,4.92]
[1729784602953,1.6847,177.03,176.97,4.92]
[1729784603154,13.60453623,177.02,176.86,3.2827]
[1729784603354,13.60453623,177.02,176.87,4.92]
[1729784603355,13.60453623,176.99,176.87,4.92]
[1729784603558,13.60453623,176.99,176.88,13.60453623]
[1729784603763,2.8276,176.94,176.9,2.8281]
[1729784604163,13.60453623,176.99,176.88,13.60453623]
[1729784604355,4.92,177.0,176.9,13.60453623]
[1729784604663,4.92,177.0,176.87,4.92]
[1729784604664,13.60453623,176.99,176.87,4.92]
[1729784606161,13.60453623,176.99,176.88,4.92]
[1729784606356,13.60453623,176.96,176.86,18.52453623]
[1729784606557,1.5586,176.95,176.86,18.52453623]
[1729784607057,2.8279,176.93,176.89,2.8283]
[1729784607264,1.5586,176.95,176.88,13.60453623]
[1729784608558,2.8278,176.93,176.89,2.8284]
[1729784609460,2.8281,176.91,176.87,2.8286]
[1729784609661,1.5586,176.95,176.86,18.52453623]
[1729784610456,2.8279,176.93,176.89,2.8283]
[1729784610657,2.8279,176.93,176.86,18.52453623]
[1729784610858,1.5586,176.95,176.88,13.60453623]
[1729784611058,4.3861,176.95,176.91,2.828]
[1729784611260,4.3861,176.95,176.88,13.60453623]
[1729784611261,1.5586,176.95,176.88,13.60453623]
[1729784611765,2.8279,176.93,176.89,2.8283]
[1729784611968,1.5586,176.95,176.88,13.60453623]
[1729784612160,1.5586,176.95,176.8,8.8798]
[1729784612161,1.5586,176.95,176.8,3.2203]
[1729784612368,13.60453623,176.94,176.83,4.92]
[1729784612669,17.00403623,176.94,176.84,13.60453623]
[1729784612856,2.8284,176.9,176.86,2.8288]
[1729784613059,3.3995,176.94,176.84,13.60453623]
[1729784613256,1.69,176.94,176.87,13.60453623]
[1729784613459,1.5586,176.95,176.87,13.60453623]
[1729784613662,1.5586,176.95,176.88,4.92]
[1729784614768,13.60453623,176.94,176.83,4.92]
[1729784614961,3.2737,176.93,176.84,2.8291]
[1729784615156,8.1937,176.93,176.83,4.92]
[1729784615558,2.8286,176.89,176.85,2.829]
[1729784616860,8.1937,176.93,176.84,2.8292]
[1729784617267,2.8292,176.85,176.8,13.60453623]
[1729784617569,2.8292,176.85,176.81,2.8296]
[1729784617767,2.8292,176.85,176.8,18.52453623]
[1729784618065,13.60453623,176.89,176.81,2.8296]
[1729784618275,2.8292,176.85,176.8,18.52453623]
[1729784618467,2.8292,176.85,176.82,2.8295]
[1729784619066,2.8292,176.85,176.8,18.52453623]
[1729784619067,2.8295,176.83,176.8,4.92]
[1729784619578,2.8295,176.83,176.78,13.60453623]
[1729784619579,2.8296,176.82,176.78,2.8301]
[1729784620184,2.8296,176.82,176.7,1.663]
[1729784620185,2.8303,176.78,176.74,2.8307]
[1729784620374,13.60453623,176.85,176.73,4.9]
[1729784620871,15.16433623,176.85,176.73,4.9]
[1729784621277,13.60453623,176.82,176.73,4.9]
[1729784621782,2.8303,176.78,176.74,2.8307]
[1729784621983,13.60453623,176.82,176.73,4.9]
[1729784622279,13.60453623,176.8,176.69,15.29763623]
[1729784622482,1.6115,176.79,176.69,13.60453623]
[1729784622879,2.8311,176.73,176.68,7.7317]
[1729784623076,18.50453623,176.78,176.68,4.9]
[1729784623277,1.6015,176.77,176.68,4.9]
[1729784623680,2.8311,176.72,176.69,2.8316]
[1729784623882,1.6015,176.77,176.68,4.9]
[1729784625578,13.60453623,176.76,176.67,2.8319]
[1729784625778,13.60453623,176.73,176.62,13.60453623]
[1729784625975,1.7099,176.72,176.64,4.9]
[1729784626179,6.6099,176.72,176.64,4.9]
[1729784626383,1.5566,176.71,176.64,4.9]
[1729784626585,2.8322,176.66,176.61,7.7327]
[1729784626885,13.60453623,176.68,176.59,175.89726644]
[1729784627186,13.60453623,176.68,176.59,4.9]
[1729784627775,2.8324,176.65,176.61,2.8328]
[1729784627979,13.60453623,176.66,176.56,4.9]
[1729784628179,13.60453623,176.66,176.55,1.5503]
[1729784628373,2.8329,176.61,176.55,1.5503]
[1729784628587,13.60453623,176.64,176.54,18.50453623]
[1729784628882,1.7017,176.63,176.54,18.50453623]
[1729784629686,2.8329,176.61,176.56,2.8336]
[1729784632582,18.50453623,176.61,176.5,4.9]
[1729784632985,2.8335,176.58,176.53,2.8341]
[1729784633384,2.8335,176.58,176.5,4.9]
[1729784633586,2.8335,176.58,176.53,2.8341]
[1729784633994,18.50453623,176.61,176.53,2.8341]
[1729784634291,2.8336,176.57,176.53,2.8341]
[1729784634490,13.60453623,176.59,176.5,4.9]
[1729784634691,2.8338,176.56,176.5,4.9]
[1729784635693,2.8338,176.56,176.52,2.8342]
[1729784636091,13.60453623,176.59,176.5,4.9]
[1729784636693,2.8333,176.59,176.55,2.8338]